bitfinex/quotes_ETHUSD_20250507
["timestamp","ask_amount","ask_price","bid_price","bid_amount"]
[1746658650767,5.49782835,1818.9,1818.8,3.68558426]
[1746658651159,5.61586608,1818.9,1818.8,3.68558426]
[1746658652872,5.61586608,1818.9,1818.8,3.99298096]
[1746658653787,5.61586608,1818.9,1818.8,0.42038027]
[1746658653954,5.61586608,1818.9,1818.7,3.99298096]
[1746658654556,0.11803773,1818.9,1818.7,3.99298096]
[1746658654757,0.11803773,1818.9,1818.7,3.68558426]
[1746658654955,5.61599678,1818.9,1818.7,3.68558426]
[1746658655452,5.61599678,1818.9,1818.8,0.30767394]
[1746658656380,0.11803773,1818.9,1818.8,0.30767394]
[1746658656567,0.11803773,1818.9,1818.8,1.09537394]
[1746658657095,0.11803773,1818.9,1818.8,0.73007022]
[1746658659001,0.11803773,1818.9,1818.8,7.35652994]
[1746658659759,0.11803773,1818.9,1818.8,8.68730891]
[1746658663695,5.61586608,1818.9,1818.8,8.68730891]
[1746658664395,5.61586608,1818.9,1818.8,7.35652994]
[1746658665406,6.38026608,1818.9,1818.8,7.35652994]
[1746658666406,6.38026608,1818.9,1818.8,7.048856]
[1746658666811,6.38026608,1818.9,1818.8,0.42239628]
[1746658667113,6.38026608,1818.9,1818.7,3.68558426]
[1746658669270,6.38026608,1818.9,1818.7,5.01636323]
[1746658670699,6.38026608,1818.9,1818.7,5.42892141]
[1746658671001,6.38026608,1818.9,1818.7,4.09814244]
[1746658671805,0.11803773,1818.9,1818.8,1.33077897]
[1746658672102,0.11803773,1818.9,1818.8,11.20549027]
[1746658672303,0.11803773,1818.9,1818.8,16.8235096]
[1746658672505,5.49677357,1819.3,1818.9,5.49757643]
[1746658672665,5.49677357,1819.3,1819.0,1.33077897]
[1746658672867,5.49643685,1819.4,1819.0,6.82818843]
[1746658673594,5.49687688,1819.3,1819.0,1.33077897]
[1746658674101,5.49696593,1819.2,1819.1,0.30783884]
[1746658674303,5.49680512,1819.3,1819.1,0.30783884]
[1746658676496,5.49680512,1819.3,1819.0,0.30783884]
[1746658676704,10.99367263,1819.3,1819.1,3.69277937]
[1746658677180,5.49680512,1819.3,1819.1,3.69277937]
[1746658677378,10.99365909,1819.3,1819.1,4.00061821]
[1746658677605,5.49680512,1819.3,1819.1,4.00061821]
[1746658678215,5.49680512,1819.3,1819.1,3.69277937]
[1746658679725,5.49680512,1819.3,1819.1,4.00061821]
[1746658680117,5.49683782,1819.3,1819.1,4.00061821]
[1746658680617,5.49683782,1819.3,1819.1,3.69277937]
[1746658680819,10.99370403,1819.3,1819.1,3.69277937]
[1746658681022,5.49692172,1819.2,1819.1,3.69277937]
[1746658681517,5.49683782,1819.3,1819.1,3.69277937]
[1746658683020,10.9937157,1819.3,1819.1,3.69277937]
[1746658683319,5.49683782,1819.3,1819.1,3.69277937]
[1746658683622,0.10725049,1819.2,1819.1,3.69277937]
[1746658684718,0.10725049,1819.2,1819.1,14.87969383]
[1746658685023,5.49632157,1819.4,1819.1,14.82472296]
[1746658685226,0.10725049,1819.3,1819.1,14.82472296]
[1746658685519,0.10725049,1819.3,1819.2,0.30783884]
[1746658686391,0.10725049,1819.3,1819.1,11.13194359]
[1746658686594,11.75875711,1819.5,1819.1,11.13194359]
[1746658686787,5.6059172,1819.4,1819.1,11.13194359]
[1746658689172,5.6059172,1819.4,1819.2,6.63113262]
[1746658689831,5.49661957,1819.3,1819.2,6.63113262]
[1746658690006,5.60684206,1819.3,1819.2,6.63113262]
[1746658690324,0.11022249,1819.3,1819.2,6.63113262]
[1746658690528,5.60684206,1819.3,1819.2,6.63113262]
[1746658690697,6.43434206,1819.3,1819.2,6.63113262]
[1746658690897,7.6274083,1819.3,1819.2,6.63113262]
[1746658691515,5.49692172,1819.2,1819.1,3.69277937]
[1746658692034,6.39604421,1819.2,1819.1,3.69277937]
[1746658694794,5.49769326,1819.0,1818.8,0.782]
[1746658694995,5.49735365,1819.1,1818.8,0.782]
[1746658695207,0.11022249,1819.0,1818.9,1.86251969]
[1746658695413,5.49703154,1819.2,1818.9,2.16939802]
[1746658695628,5.60749154,1819.1,1818.9,0.30687833]
[1746658696226,0.11022249,1819.1,1818.9,0.30687833]
[1746658696527,5.49724152,1819.1,1818.9,0.30687833]
[1746658696746,0.11022249,1819.0,1818.9,0.30687833]
[1746658697221,0.11022249,1819.0,1818.9,3.9996577]
[1746658697417,5.49703154,1819.2,1818.9,3.9996577]
[1746658697625,0.11022249,1819.1,1818.9,3.9996577]
[1746658697807,5.49703154,1819.2,1818.9,3.9996577]
[1746658698000,0.11006607,1819.1,1818.9,3.9996577]
[1746658698299,5.49703154,1819.2,1818.9,3.9996577]
[1746658699037,5.4972657,1819.1,1818.9,3.9996577]
[1746658700315,5.49708331,1819.2,1819.0,0.30687833]
[1746658700729,5.4972239,1819.1,1819.0,0.30687833]
[1746658701945,5.49708331,1819.2,1819.0,0.30687833]
[1746658704543,10.99424939,1819.2,1819.0,0.30687833]
[1746658705045,5.49708331,1819.2,1819.0,0.30687833]
[1746658707717,5.4972239,1819.1,1819.0,0.30687833]
[1746658710449,5.49708331,1819.2,1819.0,0.30687833]
[1746658711743,5.4972239,1819.1,1819.0,0.30687833]
[1746658712055,5.4972239,1819.1,1818.9,3.9996577]
[1746658712854,5.49708331,1819.2,1818.9,9.49742417]
[1746658713349,5.49678112,1819.3,1818.9,9.49739008]
[1746658713742,5.49678112,1819.3,1819.0,5.80429599]
[1746658713916,5.49678112,1819.3,1819.0,0.30687833]
[1746658714347,10.99366513,1819.3,1819.0,0.30687833]
[1746658714748,10.99366513,1819.3,1819.1,0.30687833]
[1746658715854,10.99366513,1819.3,1819.0,0.30687833]
[1746658716059,5.49678112,1819.3,1819.0,0.30687833]
[1746658716527,5.49678112,1819.3,1819.1,0.30687833]
[1746658717560,5.49678112,1819.3,1819.1,6.93718739]
[1746658717760,5.49678112,1819.3,1819.1,6.63030906]
[1746658718057,10.99363108,1819.3,1819.1,6.63030906]
[1746658718670,5.49678112,1819.3,1819.1,6.63030906]
[1746658719765,5.49678112,1819.3,1819.1,3.69277937]
[1746658723866,10.99366527,1819.3,1819.1,3.69277937]
[1746658724265,5.49678112,1819.3,1819.1,3.69277937]
[1746658724932,10.99362539,1819.3,1819.1,3.69277937]
[1746658725276,5.49678112,1819.3,1819.1,3.69277937]
[1746658725771,5.49678112,1819.3,1819.0,3.69277937]
[1746658726172,10.99363239,1819.3,1819.0,3.69277937]
[1746658726372,5.49678112,1819.3,1819.0,3.69277937]
[1746658726685,5.49678112,1819.3,1819.1,0.30794227]
[1746658727579,5.49678112,1819.3,1819.0,3.69277937]
[1746658728240,5.49678112,1819.3,1819.1,3.69277937]
[1746658731082,10.99363573,1819.3,1819.1,3.69277937]
[1746658731371,5.49678112,1819.3,1819.0,6.63670742]
[1746658731776,5.49678112,1819.3,1819.1,0.30790295]
[1746658732277,5.49692172,1819.2,1819.1,0.30790295]
[1746658732462,5.49692172,1819.2,1819.0,6.63670742]
[1746658732463,5.4972239,1819.1,1819.0,6.63670742]
[1746658733386,5.4972239,1819.1,1819.0,3.69277937]
[1746658735073,0.7722,1819.2,1819.0,3.69277937]
[1746658736280,5.4972239,1819.1,1818.8,6.69277937]
[1746658738487,5.4972239,1819.1,1818.8,13.52128923]
[1746658741290,5.4972239,1819.1,1818.8,8.02322564]
[1746658741777,6.26924799,1819.2,1818.9,1.33044627]
[1746658741943,11.76641484,1819.2,1818.9,1.33044627]
[1746658742145,5.49704799,1819.2,1818.9,6.82827384]
[1746658742487,5.49677487,1819.3,1819.0,2.13304627]
[1746658742787,5.49677487,1819.3,1819.1,1.33044627]
[1746658742953,5.49677487,1819.3,1819.0,7.63053958]
[1746658743284,5.49696795,1819.2,1818.9,2.13304627]
[1746658743658,5.49696795,1819.2,1818.9,0.8026]
[1746658743858,5.49731911,1819.1,1818.8,12.19069065]
[1746658744079,5.49731911,1819.1,1818.8,6.69277937]
[1746658744981,5.49758124,1819.0,1818.8,6.69277937]
[1746658745142,5.49782835,1818.9,1818.8,3.69277937]
[1746658745344,5.49830115,1818.8,1818.5,0.8026]
[1746658745556,5.49847577,1818.7,1818.6,0.30791847]
[1746658745899,5.49826131,1818.8,1818.6,0.30791847]
[1746658748594,5.49826131,1818.8,1818.5,4.11051847]
[1746658749287,5.49826131,1818.8,1818.6,3.69632511]
[1746658750102,5.4980003,1818.9,1818.6,11.05793826]
[1746658750103,5.49802378,1818.9,1818.6,11.05793826]
[1746658750270,5.49771198,1819.0,1818.6,11.36585673]
[1746658750474,5.49785978,1818.9,1818.6,11.36585673]
[1746658750677,5.49785978,1818.9,1818.6,11.05793826]
[1746658751400,5.49785978,1818.9,1818.6,5.55922588]
[1746658751898,5.49785978,1818.9,1818.6,14.00276419]
[1746658752500,5.49774331,1819.0,1818.7,0.7734]
[1746658752689,10.99552338,1819.0,1818.7,0.7734]
[1746658753071,5.49774331,1819.0,1818.7,0.7734]
[1746658753467,10.99553421,1819.0,1818.7,0.7734]
[1746658754105,10.99553421,1819.0,1818.7,1.08098121]
[1746658754705,5.49774331,1819.0,1818.7,1.08098121]
[1746658755083,10.99550685,1819.0,1818.7,1.08098121]
[1746658755379,10.99489524,1819.1,1818.7,6.57941307]
[1746658755578,10.99488849,1819.1,1818.7,6.57941307]
[1746658756109,5.49741254,1819.1,1818.7,6.57941307]
[1746658756298,10.9948763,1819.1,1818.7,6.57941307]
[1746658756471,10.9948763,1819.1,1818.8,0.30758121]
[1746658757008,5.49741254,1819.1,1818.8,0.30758121]
[1746658758615,10.99490589,1819.1,1818.8,0.30758121]
[1746658758800,5.49754183,1819.0,1818.8,0.30758121]
[1746658759100,5.49754183,1819.0,1818.9,0.30758121]
[1746658759320,5.49754183,1819.0,1818.8,0.30758121]
[1746658759615,5.49741254,1819.1,1818.8,0.30758121]
[1746658760113,5.49741254,1819.1,1818.9,0.30758121]
[1746658760411,5.49741254,1819.1,1818.8,0.30758121]
[1746658761213,5.49752611,1819.0,1818.8,0.30758121]
[1746658761413,5.49752611,1819.0,1818.8,4.00390632]
[1746658761915,5.49752611,1819.0,1818.9,0.30758121]
[1746658763011,5.49741254,1819.1,1818.9,0.30758121]
[1746658763012,10.99489732,1819.1,1818.9,0.30758121]
[1746658763316,5.49741254,1819.1,1818.9,0.30758121]
[1746658763500,5.49752611,1819.0,1818.9,0.30758121]
[1746658764817,5.49752611,1819.0,1818.8,4.00390632]
[1746658765013,10.99528275,1819.0,1818.8,4.00390632]
[1746658765219,5.49782835,1818.9,1818.8,4.00390632]
[1746658766453,5.49782835,1818.9,1818.8,3.69632511]
[1746658767056,5.49782835,1818.9,1818.8,4.00390632]
[1746658767749,5.49782835,1818.9,1818.8,3.69632511]
[1746658768454,5.49782835,1818.9,1818.8,4.00390632]
[1746658768852,5.49782835,1818.9,1818.8,0.30758121]
[1746658769255,5.49813063,1818.8,1818.7,7.00390632]
[1746658771967,5.49813063,1818.8,1818.7,9.94327139]
[1746658772470,5.49813063,1818.8,1818.7,9.63569018]
[1746658772871,5.49813063,1818.8,1818.7,6.63569018]
[1746658774280,5.49813063,1818.8,1818.7,6.94286191]
[1746658774570,5.49813063,1818.8,1818.7,0.30717173]
[1746658778870,5.49813063,1818.8,1818.7,6.94132641]
[1746658783343,5.49782835,1818.9,1818.7,6.94132641]
[1746658783596,10.99591697,1818.9,1818.7,6.94132641]
[1746658783875,5.49782835,1818.9,1818.7,6.63415468]
[1746658784053,5.49813063,1818.8,1818.7,6.63415468]
[1746658785794,5.49813063,1818.8,1818.7,6.9414342]
[1746658791097,5.49813063,1818.8,1818.7,6.63415468]
[1746658791305,5.49813063,1818.8,1818.7,6.94142116]
[1746658800214,5.49782835,1818.9,1818.7,8.27241488]
[1746658800400,5.49813063,1818.8,1818.7,6.94142116]
[1746658801516,5.49782835,1818.9,1818.7,6.94142116]
[1746658801842,5.49770658,1819.0,1818.8,0.30726648]
[1746658802023,5.49785559,1818.9,1818.8,0.30726648]
[1746658802183,5.49782835,1818.9,1818.8,0.30726648]
[1746658802385,10.99548235,1819.0,1818.8,0.30726648]
[1746658802596,5.49782835,1818.9,1818.8,0.30726648]
[1746658803082,5.49813063,1818.8,1818.7,6.63415468]
[1746658803318,6.32343063,1818.8,1818.7,6.63415468]
[1746658804337,5.49843294,1818.7,1818.6,3.69632511]
[1746658805103,5.49794448,1818.9,1818.6,6.63975908]
[1746658805486,11.1363998,1819.1,1818.7,5.49837004]
[1746658805701,11.1363998,1819.1,1818.8,1.07947249]
[1746658805702,5.49768025,1819.0,1818.8,1.07947249]
[1746658805931,5.49736417,1819.1,1818.8,2.94343397]
[1746658806145,5.49753392,1819.0,1818.7,3.05497822]
[1746658806356,5.4980621,1818.9,1818.7,0.7876]
[1746658806526,5.49768696,1819.0,1818.7,0.7876]
[1746658806527,10.99550213,1819.0,1818.7,0.7876]
[1746658806833,5.49768696,1819.0,1818.7,4.48392511]
[1746658807022,5.49768696,1819.0,1818.7,3.69632511]
[1746658807210,5.49807414,1818.9,1818.7,3.69632511]
[1746658807639,5.49807414,1818.9,1818.8,0.30777889]
[1746658808245,6.32577414,1818.9,1818.8,0.30777889]
[1746658808406,7.50811703,1818.9,1818.8,0.30777889]
[1746658809360,5.49813063,1818.8,1818.7,3.69632511]
[1746658809544,5.4986605,1818.7,1818.4,7.99988693]
[1746658810342,5.4983142,1818.8,1818.4,7.99988693]
[1746658810522,5.49864596,1818.7,1818.5,0.30777889]
[1746658811539,5.49864596,1818.7,1818.6,3.69370971]
[1746658811716,5.49864596,1818.7,1818.6,4.0014886]
[1746658813344,5.49864596,1818.7,1818.6,3.69370971]
[1746658813549,5.49864596,1818.7,1818.6,4.00153017]
[1746658813938,5.49864596,1818.7,1818.6,6.94668652]
[1746658815451,5.49864596,1818.7,1818.6,6.63886606]
[1746658818253,6.29544596,1818.7,1818.6,6.63886606]
[1746658818459,7.47482198,1818.7,1818.6,6.63886606]
[1746658818955,5.49873529,1818.6,1818.5,6.63886606]
[1746658819651,5.49873529,1818.6,1818.5,6.94656588]
[1746658821266,5.49873529,1818.6,1818.5,6.94641074]
[1746658824784,5.49873529,1818.6,1818.5,6.63886606]
[1746658824964,14.8326349,1818.6,1818.5,6.63886606]
[1746658825280,25.0226349,1818.6,1818.5,6.63886606]
[1746658827394,30.43659638,1818.6,1818.5,6.45131601]
[1746658829045,5.50024751,1818.1,1818.0,4.69210804]
[1746658829269,14.33933374,1818.1,1817.8,0.2438667]
[1746658829484,6.30695263,1817.9,1817.8,0.2438667]
[1746658830853,5.50067563,1818.0,1817.8,0.2438667]
[1746658831080,5.50085263,1817.9,1817.8,0.2438667]
[1746658831696,5.50067563,1818.0,1817.8,0.2438667]
[1746658831980,5.50085263,1817.9,1817.8,0.2438667]
[1746658833895,5.50066168,1818.0,1817.8,1.0560667]
[1746658835285,5.50085263,1817.9,1817.8,1.0560667]
[1746658835585,11.00144833,1818.0,1817.8,1.0560667]
[1746658835882,5.50066168,1818.0,1817.8,1.0560667]
[1746658836082,11.00144778,1818.0,1817.8,1.0560667]
[1746658836260,11.00146938,1818.0,1817.8,1.0560667]
[1746658836460,5.50066168,1818.0,1817.8,1.0560667]
[1746658836847,5.50085263,1817.9,1817.8,1.0560667]
[1746658837077,11.00148209,1818.0,1817.8,1.0560667]
[1746658837274,11.11945081,1818.1,1817.8,1.0560667]
[1746658837682,11.00097755,1818.1,1817.8,1.0560667]
[1746658837864,5.50045081,1818.1,1817.8,1.0560667]
[1746658838069,11.0009465,1818.1,1817.8,1.0560667]
[1746658838270,5.50045081,1818.1,1817.8,1.0560667]
[1746658838471,5.50045081,1818.1,1817.8,6.55720747]
[1746658838688,5.50045081,1818.1,1817.8,1.0560667]
[1746658840292,15.6900898,1818.2,1817.8,8.42093876]
[1746658840787,5.50026494,1818.1,1817.8,8.42093876]
[1746658842685,5.5000898,1818.2,1817.9,5.50074259]
[1746658842883,5.5000898,1818.2,1818.0,0.7689]
[1746658843990,5.50005111,1818.2,1818.0,0.7689]
[1746658844588,5.50024751,1818.1,1818.0,0.7689]
[1746658844959,5.50024751,1818.1,1817.8,1.0600667]
[1746658845285,5.50064245,1818.0,1817.8,1.0600667]
[1746658845506,5.49965399,1818.3,1817.9,5.50069506]
[1746658845507,5.49987773,1818.3,1817.9,5.50069506]
[1746658845672,5.49987773,1818.3,1818.0,0.8162]
[1746658846373,10.99977778,1818.3,1818.0,0.8162]
[1746658846569,11.10946078,1818.4,1818.0,8.18056208]
[1746658846774,11.10946078,1818.4,1818.1,5.50015755]
[1746658848299,5.61,1818.4,1818.2,0.7558]
[1746658848499,5.61,1818.4,1818.2,6.25564994]
[1746658848704,5.4988372,1818.6,1818.2,11.7553156]
[1746658848877,36.42029367,1818.7,1818.4,0.7913]
[1746658849263,5.49861875,1818.7,1818.4,6.29062703]
[1746658849465,5.49828349,1818.8,1818.4,6.29042316]
[1746658849875,10.99667646,1818.8,1818.4,6.29042316]
[1746658850823,5.49843455,1818.7,1818.4,6.29042316]
[1746658851626,6.4256,1819.0,1818.5,0.8098]
[1746658851942,11.10772047,1819.0,1818.6,5.49873428]
[1746658852094,5.49772047,1819.0,1818.7,6.30816587]
[1746658852296,5.49772047,1819.0,1818.7,0.8098]
[1746658852624,5.49783948,1818.9,1818.7,0.8098]
[1746658852793,5.49772047,1819.0,1818.7,0.8098]
[1746658853426,5.4974068,1819.1,1818.7,0.8098]
[1746658853427,5.49740998,1819.1,1818.7,0.8098]
[1746658853623,10.99487077,1819.1,1818.7,6.30814491]
[1746658853832,5.49760829,1819.0,1818.7,0.8098]
[1746658855044,5.49760829,1819.0,1818.7,6.30822341]
[1746658855407,5.49760829,1819.0,1818.7,0.8098]
[1746658855602,5.49802189,1818.9,1818.7,0.8098]
[1746658855852,5.49802189,1818.9,1818.6,3.0]
[1746658856054,5.49817701,1818.8,1818.6,3.0]
[1746658856344,5.49802189,1818.9,1818.6,3.0]
[1746658856857,5.49815508,1818.8,1818.6,3.0]
[1746658857517,5.49843294,1818.7,1818.5,0.8136]
[1746658857850,5.49843294,1818.7,1818.4,3.8215]
[1746658859348,5.49897116,1818.6,1818.4,3.8215]
[1746658859509,5.49897116,1818.6,1818.2,5.49982973]
[1746658859705,5.49904708,1818.5,1818.3,0.7523]
[1746658860138,5.49897116,1818.6,1818.3,0.7523]
[1746658860360,5.49897116,1818.6,1818.3,6.25185762]
[1746658860726,5.49897116,1818.6,1818.3,0.7523]
[1746658861039,10.99723378,1818.7,1818.3,6.25178971]
[1746658861220,5.49832411,1818.8,1818.3,8.11575119]
[1746658861408,10.99723532,1818.7,1818.3,8.11575119]
[1746658861610,5.49852496,1818.7,1818.3,8.11575119]
[1746658861864,5.49852496,1818.7,1818.3,8.17074122]
[1746658862157,5.49845597,1818.7,1818.3,8.17075245]
[1746658862360,5.49875972,1818.6,1818.3,6.30679097]
[1746658862918,6.28935597,1818.7,1818.3,6.30679097]
[1746658863350,5.49876179,1818.6,1818.3,6.30679097]
[1746658863545,6.28935597,1818.7,1818.3,6.30679097]
[1746658864133,11.78801805,1818.7,1818.3,6.30679097]
[1746658864456,6.28935597,1818.7,1818.3,6.30679097]
[1746658864661,6.28935597,1818.7,1818.3,11.80624955]
[1746658864821,11.78801712,1818.7,1818.3,6.25175858]
[1746658865026,5.49845597,1818.7,1818.3,11.8061918]
[1746658865268,11.10698115,1818.9,1818.6,0.7905]
[1746658867061,5.49822135,1818.8,1818.6,0.7905]
[1746658867263,11.10698115,1818.9,1818.6,0.7905]
[1746658867625,5.49769344,1819.0,1818.7,5.4983966]
[1746658867971,5.49792719,1818.9,1818.6,6.28922912]
[1746658868520,5.49792719,1818.9,1818.6,6.34421096]
[1746658869057,5.49769344,1819.0,1818.6,6.34421096]
[1746658869237,5.49769344,1819.0,1818.6,11.8427518]
[1746658869438,5.49769344,1819.0,1818.6,11.78776996]
[1746658869979,5.49769344,1819.0,1818.6,6.28904084]
[1746658870277,5.49785778,1818.9,1818.6,0.7905]
[1746658872081,5.49785778,1818.9,1818.6,6.28922235]
[1746658872482,5.49769344,1819.0,1818.6,6.28922235]
[1746658872781,5.49784671,1818.9,1818.6,6.28922235]
[1746658873490,10.99592735,1818.9,1818.6,0.7905]
[1746658873694,5.49814494,1818.8,1818.6,0.7905]
[1746658874263,5.49784671,1818.9,1818.6,6.28919724]
[1746658874465,10.99593422,1818.9,1818.6,0.7905]
[1746658874662,5.49784671,1818.9,1818.6,0.7905]
[1746658874982,10.99589817,1818.9,1818.6,0.7905]
[1746658875282,10.99590898,1818.9,1818.6,0.7905]
[1746658875473,10.99590898,1818.9,1818.6,1.0970623]
[1746658875671,5.49784671,1818.9,1818.6,1.0970623]
[1746658876166,5.49843294,1818.7,1818.6,0.3065623]
[1746658877189,5.49877563,1818.6,1818.4,1.0998623]
[1746658879797,5.49903766,1818.5,1818.4,0.3065623]
[1746658880089,6.59881899,1818.5,1818.4,0.3065623]
[1746658880261,6.59881899,1818.5,1818.3,0.3065623]
[1746658880461,5.49903766,1818.5,1818.3,0.3065623]
[1746658880799,5.49944061,1818.4,1818.2,4.1099623]
[1746658881165,5.49944061,1818.4,1818.2,3.3065623]
[1746658881360,10.99902825,1818.4,1818.2,0.3065623]
[1746658881680,5.49964252,1818.3,1818.2,0.3065623]
[1746658881991,10.99952735,1818.3,1818.1,0.3065623]
[1746658882587,6.67751525,1818.3,1818.1,0.3065623]
[1746658882795,5.50024751,1818.1,1818.0,0.3065623]
[1746658883796,5.50060734,1818.0,1817.8,4.353829]
[1746658883980,5.50060734,1818.0,1817.8,0.550429]
[1746658884298,5.50085263,1817.9,1817.8,0.550429]
[1746658884624,6.67891863,1817.9,1817.8,0.2438667]
[1746658891638,5.50085263,1817.9,1817.8,0.2438667]
[1746658896342,6.29135263,1817.9,1817.8,0.2438667]
[1746658900821,5.50085263,1817.9,1817.8,0.2438667]
[1746658903659,11.10072877,1818.0,1817.8,0.2438667]
[1746658904120,5.50085263,1817.9,1817.8,0.2438667]
[1746658907759,7.16101077,1817.9,1817.8,0.2438667]
[1746658909620,5.50085263,1817.9,1817.8,0.2438667]
[1746658915984,6.28705263,1817.9,1817.8,0.2438667]
[1746658921492,5.50085263,1817.9,1817.8,0.2438667]
[1746658922182,5.50072877,1818.0,1817.8,0.2438667]
[1746658922965,5.50085263,1817.9,1817.8,0.2438667]
[1746658932017,5.50072877,1818.0,1817.8,0.2438667]
[1746658932313,11.00154665,1818.0,1817.8,0.2438667]
[1746658932675,5.50072877,1818.0,1817.8,0.2438667]
[1746658932882,5.50072877,1818.0,1817.8,0.55127742]
[1746658933980,5.50085263,1817.9,1817.8,0.2438667]
[1746658935012,11.00154484,1818.0,1817.8,0.2438667]
[1746658935202,5.50072877,1818.0,1817.8,0.2438667]
[1746658936378,5.50072877,1818.0,1817.9,0.30730513]
[1746658937320,11.00157255,1818.0,1817.8,0.55117183]
[1746658938920,5.50085263,1817.9,1817.8,0.55117183]
[1746658943820,11.00158112,1818.0,1817.8,0.55117183]
[1746658944118,5.50085263,1817.9,1817.8,0.55117183]
[1746658945425,5.50072877,1818.0,1817.8,0.55117183]
[1746658945624,5.49944313,1818.4,1818.1,0.7952]
[1746658945625,5.49948536,1818.4,1818.1,0.7952]
[1746658945916,5.49887475,1818.6,1818.3,0.7952]
[1746658946326,10.99788125,1818.6,1818.3,0.7952]
[1746658946486,5.49887475,1818.6,1818.4,0.30730513]
[1746658946688,5.51282834,1818.7,1818.4,0.30730513]
[1746658946987,11.0115562,1818.7,1818.4,0.30730513]
[1746658947185,5.49875078,1818.6,1818.4,0.30730513]
[1746658947801,5.49903766,1818.5,1818.4,0.30730513]
[1746658948430,6.5988165,1818.5,1818.4,0.30730513]
[1746658948665,5.49948057,1818.4,1818.2,3.30730513]
[1746658950016,5.49903766,1818.5,1818.2,3.30730513]
[1746658951395,5.49886896,1818.6,1818.2,8.8621095]
[1746658951739,5.51282204,1818.7,1818.3,6.26692728]
[1746658952034,0.01423543,1818.7,1818.5,6.26619309]
[1746658952276,0.01423543,1818.7,1818.6,5.55371537]
[1746658952410,0.01423543,1818.7,1818.6,8.55371537]
[1746658952931,0.01423543,1818.7,1818.6,8.85949585]
[1746658953091,0.01423543,1818.7,1818.6,9.27194856]
[1746658953628,0.01423543,1818.7,1818.6,9.2719231]
[1746658955035,0.01423543,1818.7,1818.6,10.0392231]
[1746658955842,0.01423543,1818.7,1818.6,10.5892231]
[1746658957410,5.49723113,1819.1,1818.8,5.49808325]
[1746658957609,5.49706638,1819.2,1818.8,5.55305742]
[1746658957814,6.2927238,1819.3,1818.9,9.29131968]
[1746658958014,5.49645198,1819.4,1819.0,5.4973773]
[1746658958015,10.99300873,1819.4,1819.0,5.4973773]
[1746658958250,5.49645198,1819.4,1819.1,0.05496766]
[1746658958450,10.99301861,1819.4,1819.1,0.05496766]
[1746658958749,6.25243716,1819.5,1819.1,5.55208642]
[1746658958953,11.74871005,1819.5,1819.2,0.7937]
[1746658959258,5.49613716,1819.5,1819.2,0.7937]
[1746658959924,5.49581899,1819.6,1819.2,9.29044111]
[1746658960119,5.4956111,1819.7,1819.3,7.36054314]
[1746658960323,10.99127763,1819.7,1819.3,7.41550403]
[1746658960662,10.99127763,1819.7,1819.3,7.36054314]
[1746658961040,5.4956111,1819.7,1819.3,7.41550408]
[1746658961237,5.49498032,1819.9,1819.5,8.15364089]
[1746658961561,5.49526074,1819.8,1819.5,2.71261537]
[1746658962346,5.49526074,1819.8,1819.5,2.65766148]
[1746658963456,5.4949766,1819.9,1819.5,8.15350927]
[1746658963662,5.494374,1820.1,1819.6,5.55065639]
[1746658963963,5.49405551,1820.2,1819.9,4.86396148]
[1746658964260,5.49405551,1820.2,1819.9,10.41370483]
[1746658964465,5.49405551,1820.2,1819.9,4.9189038]
[1746658965552,10.98821637,1820.2,1819.9,4.9189038]
[1746658965859,5.49426485,1820.1,1819.9,4.9189038]
[1746658967562,5.49375327,1820.3,1820.0,0.7728]
[1746658967768,5.49322296,1820.5,1820.1,7.41293672]
[1746658968061,5.49344963,1820.4,1820.1,4.91889866]
[1746658968448,5.49289726,1820.6,1820.3,3.0]
[1746658968624,5.49289726,1820.6,1820.4,0.05492669]
[1746658969438,5.49289726,1820.6,1820.3,4.86396148]
[1746658969638,5.49240508,1820.7,1820.5,4.86396148]
[1746658969839,5.49240508,1820.7,1820.5,3.7919]
[1746658970041,5.49269471,1820.6,1820.3,2.62646148]
[1746658970228,5.49269471,1820.6,1820.4,0.05492554]
[1746658971557,5.4926011,1820.7,1820.4,0.05492554]
[1746658972265,5.49226535,1820.8,1820.3,6.25607985]
[1746658972266,5.49299642,1820.5,1820.3,0.7625]
[1746658972470,10.98585995,1820.6,1820.3,0.7625]
[1746658972789,5.49289273,1820.6,1820.3,0.7625]
[1746658973882,10.98585465,1820.6,1820.3,0.7625]
[1746658974059,5.49329817,1820.4,1820.3,0.7625]
[1746658974264,5.49329817,1820.4,1820.1,3.8047]
[1746658974852,5.49390176,1820.2,1819.9,0.8047]
[1746658975170,5.49479469,1820.0,1819.7,0.8047]
[1746658975372,5.49492502,1819.9,1819.7,0.8047]
[1746658976268,5.49492502,1819.9,1819.7,0.85964745]
[1746658976792,5.49436355,1820.1,1819.7,6.35493184]
[1746658977092,10.98881661,1820.1,1819.7,6.35493184]
[1746658977392,5.49446348,1820.1,1819.7,6.29998439]
[1746658977691,5.49461035,1820.0,1819.7,6.71432077]
[1746658977987,5.49446348,1820.1,1819.7,6.71432077]
[1746658978290,5.49461035,1820.0,1819.7,6.71432077]
[1746658978493,5.49461035,1820.0,1819.7,1.21903638]
[1746658979553,5.4943263,1820.1,1819.8,0.05494523]
[1746658979759,5.49459903,1820.0,1819.8,0.05494523]
[1746658981190,5.49400138,1820.2,1819.9,8.49463375]
[1746658981390,5.49450549,1820.0,1819.9,3.0]
[1746658981565,5.49453461,1820.0,1819.9,3.0]
[1746658982089,5.49453461,1820.0,1819.8,0.05494373]
[1746658982393,5.49453461,1820.0,1819.8,0.05494507]
[1746658982553,11.78878563,1820.1,1819.8,0.05494507]
[1746658982754,6.29428122,1820.1,1819.8,0.05494507]
[1746658983057,0.10346997,1820.0,1819.8,0.05494507]
[1746658983295,0.10346997,1820.0,1819.7,4.21903638]
[1746658983458,11.09289331,1820.0,1819.7,4.21903638]
[1746658983657,5.59815466,1820.0,1819.7,4.21903638]
[1746658983991,0.10346997,1820.0,1819.8,0.05494508]
[1746658984187,0.10346997,1820.0,1819.9,3.0]
[1746658984419,5.49404449,1820.2,1819.9,3.0]
[1746658984615,0.10346997,1820.1,1819.9,8.49468309]
[1746658984959,0.10346997,1820.1,1819.9,8.54962385]
[1746658986325,0.10346997,1820.1,1819.9,3.0]
[1746658986865,0.10346997,1820.1,1820.0,6.3739481]
[1746658987228,5.49360855,1820.3,1820.0,6.31900549]
[1746658987516,0.10346997,1820.2,1820.0,6.31900549]
[1746658987664,0.10346997,1820.2,1820.0,6.37394329]
[1746658987998,5.49349205,1820.4,1820.0,0.8794378]
[1746658988200,5.59725816,1820.3,1820.0,0.8794378]
[1746658989106,5.59725816,1820.3,1820.0,0.8245]
[1746658989277,5.59725816,1820.3,1819.9,8.49458772]
[1746658989593,0.10346997,1820.3,1820.1,3.0]
[1746658989988,5.59708622,1820.3,1820.1,3.0]
[1746658991504,0.10346997,1820.3,1820.1,3.0]
[1746658992001,5.59716715,1820.3,1820.1,3.0]
[1746658993207,5.49390176,1820.2,1820.1,3.0]
[1746658993382,0.10425114,1820.2,1820.1,3.0]
[1746658995206,5.5981529,1820.2,1820.1,3.0]
[1746658995375,0.10425114,1820.2,1820.1,3.0]